fUST/lending_fUST_20260228
["ID","MTS","AMOUNT","RATE_DAILY","PERIOD"]
[406927412,1772284238877,-244.8120065,0.00013699,2]
[406927413,1772284238886,-500.0,0.00013699,2]
[406927414,1772284238895,-500.0,0.00013699,2]
[406927415,1772284238905,-500.2097719,0.00013699,2]
[406927416,1772284238914,-500.0,0.00013699,2]
[406927417,1772284238923,-500.83198496,0.00013699,2]
[406927418,1772284238933,-500.0,0.00013699,2]
[406927419,1772284238942,-500.75402419,0.00013699,2]
[406927420,1772284238951,-500.0,0.00013699,2]
[406927421,1772284238960,-533.76824066,0.00013699,2]
[406927422,1772284238969,-500.0,0.00013699,2]
[406927423,1772284238978,-500.0,0.00013699,2]
[406927424,1772284238987,-500.71834181,0.00013699,2]
[406927425,1772284238996,-500.0,0.00013699,2]
[406927426,1772284239006,-487.18417472,0.00013699,2]
[406927427,1772284239015,-166.30144474,0.00013699,2]
[406927428,1772284239024,-500.0,0.00013699,2]
[406927429,1772284239033,-500.0,0.00013699,2]
[406927430,1772284239043,-500.0,0.00013699,2]
[406927431,1772284239052,-500.0,0.00013699,2]
[406927432,1772284239062,-500.0,0.00013699,2]
[406927433,1772284239071,-528.675968,0.00013699,2]
[406927434,1772284239080,-500.33372002,0.00013699,2]
[406927435,1772284239089,-500.46554818,0.00013699,2]
[406927436,1772284239099,-500.0,0.00013699,2]
[406927437,1772284239108,-500.0,0.00013699,2]
[406927438,1772284239117,-500.0,0.00013699,2]
[406927439,1772284239126,-547.25233303,0.00013699,2]
[406927440,1772284239137,-500.0,0.00013699,2]
[406927441,1772284239146,-500.0,0.00013699,2]
[406927442,1772284239155,-150.0,0.000137,2]
[406927443,1772284239164,-500.0,0.000137,2]
[406927444,1772284239174,-500.0,0.0001382,2]
[406927445,1772284239183,-500.0,0.0001382,2]
[406927446,1772284239193,-500.0,0.0001382,2]
[406927447,1772284239202,-500.0,0.0001382,2]
[406927448,1772284239211,-500.0,0.0001382,2]
[406927449,1772284239221,-500.0,0.0001382,2]
[406927450,1772284239230,-500.0,0.0001382,2]
[406927451,1772284239240,-500.0,0.0001382,2]
[406927452,1772284239253,-500.0,0.0001382,2]
[406927453,1772284239263,-500.0,0.0001382,2]
[406927454,1772284239272,-500.0,0.0001382,2]
[406927455,1772284239283,-500.0,0.0001382,2]
[406927456,1772284239292,-500.0,0.0001382,2]
[406927457,1772284239301,-500.0,0.0001382,2]
[406927458,1772284239310,-500.0,0.0001382,2]
[406927459,1772284239321,-520.48381951,0.0001382,2]
[406927460,1772284239330,-500.0,0.0001382,2]
[406927461,1772284239339,-500.0,0.0001382,2]
[406927462,1772284239348,-500.0,0.0001382,2]
[406927463,1772284239358,-500.0,0.0001382,2]
[406927464,1772284239367,-500.0,0.0001382,2]
[406927465,1772284239377,-500.0,0.0001382,2]
[406927466,1772284239386,-500.0,0.0001382,2]
[406927467,1772284239396,-500.0,0.0001382,2]
[406927468,1772284239405,-500.0,0.0001382,2]
[406927469,1772284239414,-500.0,0.0001382,2]
[406927470,1772284239424,-500.0,0.0001382,2]
[406927471,1772284239433,-500.0,0.0001382,2]
[406927472,1772284239443,-500.0,0.0001382,2]
[406927473,1772284239453,-500.0,0.0001382,2]
[406927474,1772284239462,-500.0,0.0001382,2]
[406927475,1772284239472,-500.0,0.0001382,2]
[406927476,1772284239481,-500.0,0.0001382,2]
[406927477,1772284239491,-500.0,0.0001382,2]
[406927478,1772284239500,-1000.0,0.00013821,2]
[406927479,1772284239509,-1000.0,0.00013821,2]
[406927480,1772284239519,-1000.0,0.00013821,2]
[406927481,1772284239529,-1000.0,0.00013821,2]
[406927482,1772284239538,-1000.0,0.00013821,2]
[406927483,1772284239547,-1067.38717322,0.00013821,2]
[406927484,1772284239557,-177.0,0.00013936,2]
[406927485,1772284239566,-500.0,0.00013974,2]
[406927486,1772284239575,-185.17882203,0.00014081,2]
[406927487,1772284239585,-472.2,0.00014147,2]
[406927488,1772284239595,-150.0,0.000142,2]
[406927489,1772284239604,-472.90310514,0.00014221,2]
[406927490,1772284239613,-522.2649433,0.00014247,2]
[406927491,1772284239623,-771.67452231,0.00014247,2]
[406927492,1772284239633,-978.29047435,0.00014247,2]
[406927493,1772284239643,-1149.03909534,0.00014247,2]
[406927494,1772284239653,-1000.0,0.00014247,2]
[406927495,1772284239662,-500.0,0.00014247,2]
[406927496,1772284239672,-1000.0,0.00014247,2]
[406927497,1772284239681,-1095.74058019,0.00014247,2]
[406927498,1772284239690,-635.13434781,0.00014247,2]
[406927499,1772284239700,-753.62958709,0.00014247,2]
[406927500,1772284239709,-1000.0,0.00014247,2]
[406927501,1772284239718,-895.38945896,0.00014247,2]
[406927502,1772284239728,-500.0,0.00014248,2]
[406927503,1772284239737,-566.43523267,0.00014368,2]
[406927504,1772284239747,-1500.0,0.00014368,2]
[406927505,1772284239756,-1448.99688877,0.00014368,2]
[406927506,1772284239765,-610.40990388,0.00014368,2]
[406927507,1772284239775,-1086.16094931,0.00014425,2]
[406927508,1772284239784,-1500.0,0.00014795,2]
[406927509,1772284239793,-178.54,0.000148,2]
[406927510,1772284239803,-587.0,0.00014886,2]
[406927511,1772284239812,-744.89972287,0.00014907,2]
[406927512,1772284239822,-1000.0,0.00014916,2]
[406927513,1772284239831,-177.745661,0.00015068,2]
[406927514,1772284239840,-2000.0,0.00015342,2]
[406927515,1772284239849,-410.23,0.000158,2]
[406927516,1772284239859,-375.23438562,0.0001589,2]
[406927517,1772284239869,-204.0,0.00015936,2]
[406927518,1772284239878,-1387.0,0.00016308,2]
[406927519,1772284239888,-729.0,0.00016308,2]
[406927520,1772284239897,-419.0,0.00016308,2]
[406927521,1772284239907,-802.0,0.00016335,2]
[406927522,1772284239916,-500.0,0.00017521,2]
[406927523,1772284239926,-362.54043484,0.00017521,2]
[406927525,1772284239935,-188.78408113,0.00017521,2]
[406927527,1772284239944,-61923.65666514,0.00017522,2]
[406927528,1772284239953,-151.0,0.00017522,2]
[406927529,1772284239963,-231.0,0.00017936,2]
[406927530,1772284239973,-11190.81678866,0.00018,2]
[406927531,1772284239983,-208.49532234,0.00018057,2]
[406927532,1772284239992,-375.29158021,0.00018057,2]
[406927533,1772284240001,-197.62676483,0.00018057,2]
[406927534,1772284240010,-187.78006525,0.00018109,2]
[406927535,1772284240019,-194.72792766,0.00018109,2]
[406927536,1772284240029,-201.93286099,0.00018109,2]
[406927537,1772284240039,-209.40437684,0.00018109,2]
[406927539,1772284240048,-217.15233878,0.00018109,2]
[406927540,1772284240057,-225.18697532,0.00018109,2]
[406927541,1772284240066,-233.51889341,0.00018109,2]
[406927542,1772284240075,-242.15909246,0.00018109,2]
[406927543,1772284240084,-251.11897888,0.00018109,2]
[406927544,1772284240094,-260.4103811,0.00018109,2]
[406927545,1772284240103,-270.0455652,0.00018109,2]
[406927546,1772284240112,-280.03725112,0.00018109,2]
[406927547,1772284240122,-290.39862941,0.00018109,2]
[406927548,1772284240130,-301.1433787,0.00018109,2]
[406927549,1772284240140,-376.10087164,0.00018109,2]
[406927550,1772284240149,-786.0,0.000182,2]
[406927551,1772284240158,-225.85915981,0.00018316,2]
[406927552,1772284240167,-168.0,0.00018363,2]
[406927553,1772284240177,-667.18503148,0.00018374,2]
[406927554,1772284240187,-178.662,0.0001876,2]
[406927555,1772284240196,-168.0,0.00018873,2]
[406927556,1772284240205,-166.62403,0.0001889,2]
[406927557,1772284240214,-53956.11031291,0.0001899,2]
[406927572,1772284240538,-27624.92640976,0.0001899,2]
[406927850,1772284243319,-1385.90790547,0.00013599,2]
[406927851,1772284243328,-18418.96327733,0.0001899,2]
[406927852,1772284243339,-151.0,0.0001899,2]
[406927854,1772284243349,-352.9049372,0.00019069,2]
[406927856,1772284243359,-15829.4399931,0.00019096,2]
[406927858,1772284243369,-2459.0956432,0.00019096,2]
[406927860,1772284243380,-1042.47661168,0.00019128,2]
[406927862,1772284243389,-151.0,0.00019178,2]
[406927864,1772284243401,-151.0,0.00019178,2]
[406927865,1772284243410,-151.0,0.00019178,2]
[406927867,1772284243420,-151.0,0.00019178,2]
[406927869,1772284243430,-151.0,0.00019178,2]
[406927872,1772284243441,-151.0,0.00019178,2]
[406927874,1772284243451,-151.0,0.00019178,2]
[406927876,1772284243461,-151.0,0.00019178,2]
[406927878,1772284243472,-151.0,0.00019178,2]
[406927880,1772284243485,-3515.023028,0.00019178,2]
[406927882,1772284243495,-3515.023028,0.00019178,2]
[406927884,1772284243505,-3515.023028,0.00019178,2]
[406927886,1772284243518,-3515.023028,0.00019178,2]
[406927888,1772284243529,-3515.023028,0.00019178,2]
[406927890,1772284243541,-3515.023028,0.00019178,2]
[406927892,1772284243553,-3515.023028,0.00019178,2]
[406927894,1772284243563,-3515.023028,0.00019178,2]
[406927896,1772284243574,-3515.023028,0.00019178,2]
[406927898,1772284243585,-3515.023028,0.00019178,2]
[406927900,1772284243594,-3515.023028,0.00019178,2]
[406927902,1772284243605,-3515.023028,0.00019178,2]
[406927903,1772284243615,-3515.023028,0.00019178,2]
[406927906,1772284243625,-3515.023028,0.00019178,2]
[406927907,1772284243637,-3515.023028,0.00019178,2]
[406927910,1772284243649,-3515.023028,0.00019178,2]
[406927912,1772284243662,-211.6752,0.00019339,30]
[406927914,1772284243672,-600.0,0.00019369,2]
[406927916,1772284243682,-151.0,0.00019369,2]
[406927918,1772284243694,-294.346656,0.00019369,2]
[406927920,1772284243703,-151.0,0.00019369,2]
[406927922,1772284243714,-3515.023028,0.00019369,2]
[406927924,1772284243725,-3515.023028,0.00019369,2]
[406927926,1772284243734,-3515.023028,0.00019369,2]
[406927928,1772284243744,-3515.023036,0.00019369,2]
[406927930,1772284243754,-168.0,0.00019685,2]
[406927932,1772284243764,-475.3007808,0.00019713,7]
[406927934,1772284243773,-160.90144404,0.00019713,7]
[406927936,1772284243783,-61935.97824018,0.000198,2]
[406927938,1772284243793,-166.62403,0.000199,2]
[406927940,1772284243802,-6451.93376904,0.000199,2]
[406927941,1772284243813,-156.0,0.00019972,2]
[406927943,1772284243823,-83004.15163561,0.0002,2]
[406928188,1772284246131,-33960.4653398,0.0002,2]
[406928190,1772284246142,-8322.7933772,0.0002,2]
[406928467,1772285438149,-717.86508783,0.00012622,2]
[406928468,1772285438158,-599.0,0.00012622,2]
[406928469,1772285438167,-42.13491217,0.00013272,2]
[406928470,1772285438259,-257.86508783,0.00013272,2]
[406928471,1772285438268,-300.0,0.00013272,2]
[406928472,1772285438277,-300.0,0.00013272,2]
[406928473,1772285438286,-300.0,0.00013272,2]
[406928474,1772285438296,-1200.0,0.00013272,2]
[406928475,1772285438305,-636.18154416,0.00013273,2]
[406928476,1772285438314,-500.0,0.00013273,2]
[406928477,1772285438323,-543.10862104,0.00013273,2]
[406928478,1772285438333,-500.18779942,0.00013273,2]
[406928479,1772285438342,-551.19877088,0.00013273,2]
[406928481,1772285438351,-500.0,0.00013273,2]
[406928483,1772285438361,-163.60834694,0.00013273,2]
[406928484,1772285438370,-318.12615352,0.00013273,2]
[406928485,1772285438380,-393.1528219,0.00013273,2]
[406928486,1772285438389,-500.0,0.00013273,2]
[406928487,1772285438398,-479.01688663,0.00013273,2]
[406928488,1772285438407,-500.0,0.00013273,2]
[406928489,1772285438417,-500.0,0.00013273,2]
[406928490,1772285438426,-6213.51920737,0.00013273,2]
[406928491,1772285438437,-3486.12324191,0.00013273,2]
[406928577,1772285440986,-1173.95140673,0.00013273,2]
[406928579,1772285440997,-2229.90438816,0.00013273,2]
[406928582,1772285441007,-160.35979117,0.00013273,2]
[406928584,1772285441016,-500.0,0.00013273,2]
[406928586,1772285441025,-500.0,0.00013273,2]
[406928587,1772285441034,-500.0,0.00013273,2]
[406928589,1772285441043,-500.0,0.00013273,2]
[406928592,1772285441053,-552.49024406,0.00013273,2]
[406928594,1772285441061,-500.0,0.00013699,2]
[406928595,1772285441071,-500.0,0.00013699,2]
[406928597,1772285441080,-500.0,0.00013699,2]
[406928599,1772285441089,-500.0,0.00013699,2]
[406928602,1772285441099,-500.0,0.00013699,2]
[406928603,1772285441108,-500.0,0.00013699,2]
[406928605,1772285441117,-500.0,0.00013699,2]
[406928608,1772285441127,-1212.66941726,0.00013721,2]
[406928610,1772285441136,-1000.0,0.00013821,2]
[406928612,1772285441145,-256.17615958,0.00013821,2]
[406928822,1772285443458,-243.82384042,0.00013821,2]
[406928824,1772285443468,-500.0,0.00013821,2]
[406928826,1772285443477,-179.0856251,0.00013972,2]
[406929092,1772285446250,-120.9143749,0.00013972,2]
[406929094,1772285446259,-300.0,0.00013972,2]
[406929096,1772285446268,-300.0,0.00013972,2]
[406929098,1772285446277,-300.0,0.00013972,2]
[406929100,1772285446286,-300.0,0.00013972,2]
[406929102,1772285446295,-300.0,0.00013972,2]
[406929104,1772285446304,-300.0,0.00013972,2]
[406929106,1772285446313,-300.0,0.00013972,2]
[406929108,1772285446322,-300.0,0.00013972,2]
[406929110,1772285446331,-300.0,0.00013972,2]
[406929112,1772285446340,-300.0,0.00013972,2]
[406929114,1772285446349,-300.0,0.00013972,2]
[406929116,1772285446359,-300.0,0.00013972,2]
[406929118,1772285446368,-300.0,0.00013972,2]
[406929120,1772285446376,-300.0,0.00013972,2]
[406929122,1772285446386,-219.81754629,0.00014247,2]
[406929124,1772285446395,-708.42681736,0.00014247,2]
[406929126,1772285446404,-600.0,0.0001425,2]
[406929128,1772285446413,-165.0063389,0.000149,2]
[406929130,1772285446422,-744.89972287,0.00015097,2]
[406929132,1772285446431,-1212.66941726,0.00015668,2]
[406929134,1772285446440,-450.06072014,0.00015675,2]
[406929136,1772285446452,-269.93927986,0.00015675,2]
[406929138,1772285446461,-864.0,0.00017243,2]
[406929140,1772285446470,-1212.66941726,0.00017616,2]
[406929142,1772285446480,-500.0,0.00018961,2]
[406929145,1772285446489,-500.0,0.00018961,2]
[406929146,1772285446498,-233.3302721,0.00018961,2]
[406929149,1772285446507,-500.0,0.00018961,2]
[406929151,1772285446516,-500.0,0.00018961,2]
[406929153,1772285446525,-500.0,0.00018961,2]
[406929155,1772285446534,-500.0,0.00018961,2]
[406929157,1772285446544,-452.04838195,0.00018961,2]
[406929158,1772285446553,-500.0,0.00018961,2]
[406929161,1772285446566,-453.53533229,0.00018961,2]
[406929163,1772285446575,-500.0,0.00018961,2]
[406929164,1772285446584,-500.0,0.00018961,2]
[406929166,1772285446595,-500.0,0.00018961,2]
[406929168,1772285446604,-500.0,0.00018961,2]
[406929170,1772285446613,-500.0,0.00018961,2]
[406929172,1772285446623,-502.19837557,0.00018961,2]
[406929174,1772285446632,-500.0,0.00018961,2]
[406929176,1772285446642,-500.0,0.00018961,2]
[406929178,1772285446651,-500.0,0.00018961,2]
[406929180,1772285446660,-500.0,0.00018961,2]
[406929182,1772285446669,-500.0,0.00018961,2]
[406929184,1772285446679,-500.0,0.00018961,2]
[406929186,1772285446688,-500.0,0.00018961,2]
[406929188,1772285446698,-500.0,0.00018961,2]
[406929190,1772285446707,-500.0,0.00018961,2]
[406929192,1772285446716,-500.0,0.00018961,2]
[406929194,1772285446725,-500.0,0.00018961,2]
[406929196,1772285446733,-500.0,0.00018961,2]
[406929198,1772285446743,-500.0,0.00018961,2]
[406929200,1772285446752,-500.0,0.00018961,2]
[406929202,1772285446762,-500.0,0.00018961,2]
[406929204,1772285446772,-519.17006561,0.00018961,2]
[406929206,1772285446781,-500.0,0.00018961,2]
[406929208,1772285446790,-500.0,0.00018961,2]
[406929210,1772285446799,-1000.0,0.00018967,2]
[406929212,1772285446808,-187.78006525,0.00018979,2]
[406929214,1772285446817,-194.72792766,0.00018979,2]
[406929216,1772285446826,-152.39602739,0.00018979,2]
[406929218,1772285446835,-603.77830439,0.00018989,2]
[406929220,1772285446844,-13703.64487025,0.0001899,2]
[406929330,1772285481541,-506.60712384,0.00013699,2]
[406929365,1772286632448,-319.88,0.00013273,2]
[406929366,1772286632460,-180.12,0.00013273,2]
[406929367,1772286632469,-243.82384042,0.00013273,2]
[406929368,1772286632479,-500.0,0.00013273,2]
[406929369,1772286632488,-150.0,0.00013273,2]
[406929370,1772286632498,-608.0,0.00013273,2]
[406929371,1772286632508,-218.0,0.00013508,2]
[406929372,1772286632517,-219.81754629,0.00013699,2]
[406929373,1772286632528,-506.60712384,0.00013699,2]
[406929374,1772286632537,-500.0,0.00013699,2]
[406929375,1772286632546,-636.18154416,0.00013821,2]
[406929376,1772286632555,-208.42681736,0.00014247,2]
[406929377,1772286632564,-189.37810034,0.00015273,2]
[406929378,1772286632574,-300.0,0.0001768,2]
[406929379,1772286632583,-1200.0,0.0001768,2]
[406929380,1772286632593,-300.0,0.0001768,2]
[406929381,1772286632602,-300.0,0.0001768,2]
[406929382,1772286632611,-4263.51664291,0.00017681,2]
[406929383,1772286632624,-1718.17750875,0.00017681,2]
[406929384,1772286632635,-2924.05903795,0.00017681,2]
[406929385,1772286632647,-6005.46585419,0.00017681,2]
[406929386,1772286632659,-2711.43230879,0.00017681,2]
[406929387,1772286632670,-7853.11114865,0.00017681,2]
[406929395,1772286638338,-744.89972287,0.00017768,2]
[406929396,1772286638347,-174.58278508,0.0001777,2]
[406929928,1772286645807,-1060.82925923,0.00017592,2]
[406929930,1772286645816,-960.47626181,0.0001777,2]
[406929948,1772286645976,-864.94095311,0.0001777,2]
[406929950,1772286645986,-1986.210489,0.00017781,2]
[406929952,1772286645997,-300.0,0.00018135,2]
[406929954,1772286646007,-300.0,0.00018135,2]
[406929956,1772286646021,-300.0,0.00018135,2]
[406929958,1772286646031,-300.0,0.00018135,2]
[406929960,1772286646041,-300.0,0.00018135,2]
[406929962,1772286646052,-300.0,0.00018135,2]
[406929965,1772286646061,-300.0,0.00018135,2]
[406929966,1772286646071,-300.0,0.00018135,2]
[406929968,1772286646080,-300.0,0.00018135,2]
[406929971,1772286646090,-300.0,0.00018135,2]
[406929973,1772286646100,-300.0,0.00018135,2]
[406929975,1772286646111,-300.0,0.00018135,2]
[406929977,1772286646120,-300.0,0.00018135,2]
[406929979,1772286646130,-300.0,0.00018135,2]
[406929981,1772286646140,-300.0,0.00018135,2]
[406929983,1772286646150,-153.0,0.000183,2]
[406929985,1772286646159,-190.5684556,0.0001831,2]
[406929987,1772286646169,-3110.2631796,0.00018415,2]
[406929989,1772286646179,-600.0,0.00018497,2]
[406929991,1772286646189,-1000.0,0.00018732,2]
[406929993,1772286646199,-55397.3734213,0.0001899,2]
[406929995,1772286646208,-178.662,0.0001899,2]
[406929997,1772286646218,-200.0,0.00019,2]
[406929999,1772286646228,-1900.0,0.000192,2]
[406930001,1772286646237,-786.0,0.000193,2]
[406930003,1772286646247,-166.945244,0.00019735,2]
[406930005,1772286646257,-11714.13774603,0.00019897,2]
[406930007,1772286646269,-265.44,0.00019899,2]
[406930009,1772286646278,-5244.7,0.000199,2]
[406930011,1772286646287,-374.86,0.0001999,3]
[406930013,1772286646297,-75808.04883424,0.0002,2]
[406930015,1772286646309,-122778.68355008,0.0002,2]
[406930017,1772286646321,-929.29363552,0.0002,2]
[406930029,1772286646426,-5240.38039008,0.0002,2]
[406930032,1772286646451,-23924.07310326,0.0002,2]
[406930090,1772286647254,-8421.79493772,0.0002,2]
[406930104,1772286647478,-59261.78223013,0.0002,2]
[406930111,1772287224773,-500.0,0.00010405,2]
[406930112,1772287332748,432.01715944,0.0001,2]
[406930113,1772287357087,524.54795434,0.0001,2]
[406930114,1772287408011,1125.14,0.000158,10]
[406930115,1772287574482,5000.0,0.0001,2]
[406930116,1772287596887,5000.0,0.0001,2]
[406930117,1772287766197,4884.81072939,0.0001,2]
[406930273,1772287832779,-564.0,0.00010301,2]
[406930275,1772287832788,-150.0,0.00010302,2]
[406930277,1772287832798,-500.0,0.00010312,2]
[406930279,1772287832811,-2295.98290093,0.00010433,2]
[406930281,1772287832821,-348.68163074,0.00010921,2]
[406930284,1772287832839,-507.65566255,0.00010921,2]
[406930286,1772287832849,-500.0,0.00011604,2]
[406930288,1772287832858,-227.53190549,0.00012169,2]
[406930290,1772287832867,-271.46379713,0.00012302,2]
[406930292,1772287832878,-500.0,0.00012375,2]
[406930294,1772287832887,-2758.30861318,0.00012525,2]
[406930339,1772287838580,-3035.50224401,0.00012525,2]
[406930341,1772287838591,-714.53585552,0.00012525,2]
[406930394,1772287841107,-282.35308982,0.00012525,2]
[406930396,1772287841117,-295.47729757,0.00012525,2]
[406930402,1772287841166,-825.52270243,0.00012525,2]
[406930404,1772287841176,-299.8231886,0.00012526,2]
[406930406,1772287841187,-322.3600629,0.00012526,2]
[406930408,1772287841200,-430.0739305,0.00012526,2]
[406930410,1772287841210,-991.76403513,0.00012773,2]
[406930412,1772287841221,-300.0,0.00012775,2]
[406930414,1772287841231,-300.0,0.00012776,2]
[406930416,1772287841241,-300.0,0.00012776,2]
[406930418,1772287841251,-300.0,0.00012776,2]
[406930420,1772287841260,-300.0,0.00012776,2]
[406930422,1772287841270,-300.0,0.00012776,2]
[406930424,1772287841280,-300.0,0.00012776,2]
[406930426,1772287841290,-300.0,0.00012776,2]
[406930429,1772287841300,-300.0,0.00012776,2]
[406930430,1772287841309,-300.0,0.00012776,2]
[406930433,1772287841321,-300.0,0.00012776,2]
[406930435,1772287841330,-300.0,0.00012776,2]
[406930437,1772287841340,-300.0,0.00012776,2]
[406930439,1772287841349,-300.0,0.00012776,2]
[406930441,1772287841359,-300.0,0.00012776,2]
[406930443,1772287841368,-300.0,0.00012776,2]
[406930445,1772287841378,-150.0,0.00013261,2]
[406930447,1772287841388,-500.0,0.00013271,2]
[406930448,1772287841398,-500.0,0.00013271,2]
[406930450,1772287841408,-500.0,0.00013271,2]
[406930452,1772287841418,-500.0,0.00013271,2]
[406930455,1772287841427,-500.0,0.00013271,2]
[406930457,1772287841437,-500.0,0.00013271,2]
[406930459,1772287841447,-500.0,0.00013271,2]
[406930461,1772287841457,-272.15138105,0.00013271,2]
[406930463,1772287841467,-500.0,0.00013271,2]
[406930465,1772287841476,-500.0,0.00013271,2]
[406930467,1772287841485,-320.0112945,0.00013271,2]
[406930689,1772287843690,-179.9887055,0.00013271,2]
[406930691,1772287843699,-364.9130671,0.00013271,2]
[406930693,1772287843708,-500.0,0.00013271,2]
[406930695,1772287843718,-276.67950485,0.00013271,2]
[406930697,1772287843727,-500.0,0.00013271,2]
[406930699,1772287843736,-500.0,0.00013271,2]
[406930701,1772287843745,-500.0,0.00013271,2]
[406930703,1772287843755,-500.0,0.00013271,2]
[406930705,1772287843764,-500.0,0.00013271,2]
[406930707,1772287843773,-500.0,0.00013271,2]
[406930709,1772287843782,-500.0,0.00013271,2]
[406930711,1772287843791,-500.0,0.00013271,2]
[406930713,1772287843801,-500.0,0.00013271,2]
[406930715,1772287843810,-500.0,0.00013271,2]
[406930717,1772287843823,-500.0,0.00013271,2]
[406930719,1772287843833,-500.0,0.00013271,2]
[406930721,1772287843844,-500.0,0.00013271,2]
[406930723,1772287843854,-500.0,0.00013271,2]
[406930725,1772287843863,-500.0,0.00013271,2]
[406930727,1772287843873,-500.0,0.00013271,2]
[406930729,1772287843884,-500.0,0.00013271,2]
[406930732,1772287843893,-500.0,0.00013271,2]
[406930735,1772287843902,-500.0,0.00013271,2]
[406930737,1772287843912,-500.0,0.00013271,2]
[406930739,1772287843922,-500.0,0.00013271,2]
[406930742,1772287843932,-202.54731276,0.00013271,2]
[406930743,1772287843942,-500.0,0.00013271,2]
[406930746,1772287843951,-500.0,0.00013271,2]
[406930748,1772287843961,-500.0,0.00013271,2]
[406930750,1772287843971,-500.0,0.00013271,2]
[406930751,1772287843983,-500.0,0.00013271,2]
[406930754,1772287843992,-500.0,0.00013271,2]
[406930756,1772287844002,-500.0,0.00013271,2]
[406930758,1772287844011,-500.0,0.00013271,2]
[406930760,1772287844020,-650.0,0.00013271,2]
[406930762,1772287844030,-500.0,0.00013271,2]
[406930764,1772287844040,-500.0,0.00013271,2]
[406930766,1772287844049,-500.0,0.00013271,2]
[406930768,1772287844059,-500.0,0.00013271,2]
[406930769,1772287844072,-500.0,0.00013271,2]
[406930771,1772287844083,-500.0,0.00013271,2]
[406930773,1772287844093,-500.0,0.00013271,2]
[406930776,1772287844103,-500.0,0.00013271,2]
[406930777,1772287844113,-500.0,0.00013271,2]
[406930779,1772287844123,-500.0,0.00013271,2]
[406930781,1772287844132,-500.0,0.00013271,2]
[406930783,1772287844141,-500.0,0.00013271,2]
[406930785,1772287844151,-500.0,0.00013271,2]
[406930788,1772287844160,-500.0,0.00013271,2]
[406930790,1772287844170,-500.0,0.00013271,2]
[406930792,1772287844184,-506.95027591,0.00013271,2]
[406930794,1772287844193,-500.0,0.00013271,2]
[406930796,1772287844203,-500.0,0.00013271,2]
[406930798,1772287844215,-500.0,0.00013271,2]
[406930800,1772287844224,-500.0,0.00013271,2]
[406930802,1772287844233,-500.0,0.00013271,2]
[406930804,1772287844242,-500.0,0.00013271,2]
[406930806,1772287844251,-500.0,0.00013271,2]
[406930808,1772287844263,-500.0,0.00013271,2]
[406930810,1772287844273,-500.0,0.00013271,2]
[406930812,1772287844282,-500.0,0.00013271,2]
[406930814,1772287844293,-500.0,0.00013271,2]
[406930816,1772287844301,-500.0,0.00013271,2]
[406930818,1772287844311,-500.0,0.00013271,2]
[406930820,1772287844323,-300.0,0.00013271,2]
[406930822,1772287844332,-500.0,0.00013271,2]
[406930824,1772287844341,-500.0,0.00013271,2]
[406930826,1772287844351,-194.55937631,0.00013271,2]
[406930828,1772287844360,-500.0,0.00013271,2]
[406930830,1772287844370,-500.0,0.00013271,2]
[406930832,1772287844380,-500.0,0.00013271,2]
[406930834,1772287844390,-500.0,0.00013271,2]
[406930836,1772287844399,-500.0,0.00013271,2]
[406930838,1772287844409,-500.0,0.00013271,2]